bitfinex/quotes_SOLUSD_20250228
["timestamp","ask_amount","ask_price","bid_price","bid_amount"]
[1740763431092,80.7,146.26,146.17,88.02]
[1740763431271,80.7,146.26,146.21,0.03]
[1740763431473,80.7,146.26,146.25,312.0]
[1740763432113,0.063,146.28,146.25,312.0]
[1740763433494,0.063,146.28,146.21,0.03]
[1740763433691,0.063,146.28,146.21,25.66121043]
[1740763433884,0.063,146.28,146.21,253.08801043]
[1740763434191,0.063,146.28,146.23,18.79181043]
[1740763434375,0.063,146.28,146.24,7.0]
[1740763436300,0.063,146.28,146.21,0.03]
[1740763436301,18.79181043,146.26,146.21,0.03]
[1740763436488,18.79181043,146.24,146.21,0.03]
[1740763436689,18.79181043,146.22,146.21,0.03]
[1740763436883,20.58757016,146.22,146.21,0.03]
[1740763437593,22.58757016,146.22,146.21,0.03]
[1740763437899,20.58757016,146.22,146.21,0.03]
[1740763439986,2.14216157,146.23,146.21,0.03]
[1740763440303,20.79181043,146.21,146.15,312.0]
[1740763440495,18.79181043,146.19,146.15,312.0]
[1740763441204,18.79181043,146.19,146.13,0.03]
[1740763441385,20.58823454,146.19,146.13,0.03]
[1740763441984,80.7,146.2,146.13,0.03]
[1740763442596,18.79181043,146.19,146.13,0.03]
[1740763443600,80.7,146.2,146.13,0.03]
[1740763443798,80.7,146.19,146.13,0.03]
[1740763443995,80.7,146.19,146.16,312.0]
[1740763444305,3.7959764,146.23,146.13,0.03]
[1740763444306,99.49181043,146.18,146.13,0.03]
[1740763444510,80.7,146.17,146.13,0.03]
[1740763444696,82.49639869,146.16,146.13,0.03]
[1740763445208,99.49181043,146.15,146.13,0.03]
[1740763445518,99.49181043,146.14,146.13,0.03]
[1740763445729,101.28865714,146.14,146.13,0.03]
[1740763446089,22.58865714,146.14,146.13,0.03]
[1740763446288,26.49617256,146.14,146.13,0.03]
[1740763446988,30.49617256,146.14,146.13,0.03]
[1740763447192,2.0,146.12,146.08,0.03]
[1740763447420,18.79181043,146.1,146.08,0.03]
[1740763448889,1.79739231,146.09,146.08,0.03]
[1740763449311,18.79181043,146.09,146.08,0.03]
[1740763450093,1.79740618,146.1,146.08,0.03]
[1740763450912,1.79731093,146.12,146.08,0.03]
[1740763451109,5.90751542,146.14,146.08,0.03]
[1740763451310,20.44656209,146.13,146.08,0.03]
[1740763452822,18.64964886,146.12,146.08,0.03]
[1740763453021,1.93933708,146.13,146.08,0.03]
[1740763453200,1.79717551,146.13,146.08,0.03]
[1740763453406,5.81303953,146.14,146.08,0.03]
[1740763453726,18.79181043,146.16,146.08,0.03]
[1740763453911,1.79677219,146.15,146.1,312.0]
[1740763454113,80.7,146.13,146.1,312.0]
[1740763454922,80.7,146.12,146.1,312.0]
[1740763455104,7.4472066,146.15,146.08,0.03]
[1740763455105,80.7,146.11,146.08,0.03]
[1740763455300,82.49726723,146.1,146.08,0.03]
[1740763455499,80.7,146.1,146.08,0.03]
[1740763456826,80.7,146.12,146.08,0.03]
[1740763458125,88.14692917,146.15,146.11,312.0]
[1740763458336,80.7,146.14,146.11,312.0]
[1740763458508,80.7,146.14,146.08,0.03]
[1740763458703,80.7,146.13,146.08,0.03]
[1740763460033,82.49698358,146.12,146.08,0.03]
[1740763460235,80.7,146.11,146.08,0.03]
[1740763460422,80.7,146.1,146.08,0.03]
[1740763460823,1.79698358,146.12,146.08,0.03]
[1740763460824,82.49717561,146.09,146.08,0.03]
[1740763461020,1.79717561,146.09,146.08,0.03]
[1740763461721,18.79181043,146.1,146.08,0.03]
[1740763462111,0.14216157,146.13,146.08,0.03]
[1740763462311,0.14216157,146.11,146.08,0.03]
[1740763462532,1.79721925,146.1,146.08,0.03]
[1740763462920,18.64964886,146.1,146.08,0.03]
[1740763463237,1.93953549,146.11,146.08,0.03]
[1740763463741,18.64964886,146.1,146.08,0.03]
[1740763464037,6.68416157,146.08,145.99,0.03]
[1740763464229,1.79803024,146.07,145.99,0.03]
[1740763465224,1.79803024,146.07,146.0,312.0]
[1740763465427,80.7,146.06,146.0,312.0]
[1740763465627,80.7,146.06,145.99,0.03]
[1740763466233,82.64000327,146.05,145.99,0.03]
[1740763466542,80.7,146.04,145.99,0.03]
[1740763467842,80.7,146.04,146.0,7.06]
[1740763468729,1.7973687,146.11,146.03,312.0]
[1740763469042,80.7,146.1,146.03,312.0]
[1740763469244,80.7,146.1,146.0,14.7349]
[1740763469541,80.7,146.09,146.0,8.5686]
[1740763471331,80.7,146.09,146.0,7.06]
[1740763471663,99.49181043,146.08,146.0,7.06]
[1740763472166,1.79769678,146.07,146.0,319.06]
[1740763472338,99.49181043,146.06,146.0,312.0]
[1740763473559,80.7,146.06,146.0,312.0]
[1740763473938,80.7,146.06,145.99,0.03]
[1740763475066,80.7,146.06,145.99,18.82181043]
[1740763475240,80.7,146.06,145.99,0.17216157]
[1740763475757,80.7,146.06,146.01,20.0]
[1740763476068,80.7,146.06,146.02,7.08]
[1740763476443,88.83599499,146.05,145.99,0.03]
[1740763476639,80.7,146.04,145.99,0.03]
[1740763476840,80.7,146.04,146.0,312.0]
[1740763477731,80.7,146.04,145.99,0.03]
[1740763477934,80.7,146.08,146.0,7.14]
[1740763478157,80.7,146.08,146.0,88.14]
[1740763478365,80.7,146.11,146.01,18.64964886]
[1740763479872,80.7,146.11,146.02,0.14216157]
[1740763480983,80.7,146.11,146.07,312.0]
[1740763481174,86.9636,146.13,146.07,312.0]
[1740763481484,86.9636,146.13,146.06,7.12]
[1740763481695,80.7,146.12,146.06,7.12]
[1740763482662,80.7,146.11,146.06,7.12]
[1740763484375,80.7,146.11,146.1,312.0]
[1740763484719,6.2038,146.16,146.1,312.0]
[1740763484870,80.7,146.18,146.09,18.79181043]
[1740763485070,80.7,146.18,146.09,101.79181043]
[1740763485889,80.7,146.18,146.09,114.80711043]
[1740763486063,80.7,146.18,146.11,18.79181043]
[1740763486264,80.7,146.18,146.12,7.1]
[1740763486587,5.84623816,146.2,146.12,88.1]
[1740763486765,80.763,146.21,146.12,88.1]
[1740763487977,80.763,146.21,146.18,312.0]
[1740763488774,0.063,146.21,146.18,7.1]
[1740763491696,0.063,146.21,146.2,312.0]
[1740763492906,0.063,146.21,146.1,220.5964]
[1740763493074,6.2181,146.19,146.11,7.08]
[1740763493270,6.2181,146.19,146.11,25.72964886]
[1740763493570,6.2181,146.19,146.12,18.79181043]
[1740763493805,6.2181,146.19,146.11,7.08]
[1740763494105,6.2181,146.19,146.11,25.72964886]
[1740763494997,6.2181,146.19,146.11,7.08]
[1740763495378,6.2181,146.19,146.12,7.08]
[1740763495894,80.7,146.18,146.14,312.0]
[1740763497092,80.7,146.18,146.12,7.08]
[1740763498501,80.7,146.18,146.01,11.8035]
[1740763498502,0.14216157,146.16,146.01,11.8035]
[1740763498803,18.79181043,146.14,146.02,7.04]
[1740763499181,80.7,146.15,146.04,18.79181043]
[1740763499476,80.7,146.14,146.03,219.0]
[1740763500201,18.64964886,146.16,146.01,9.8035]
[1740763500202,82.49691902,146.13,146.07,312.0]
[1740763500387,80.7,146.14,146.07,312.0]
[1740763500588,80.7,146.17,146.07,18.64964886]
[1740763500788,80.7,146.17,146.07,99.64964886]
[1740763501187,82.49629812,146.17,146.07,81.0]
[1740763501594,80.7,146.17,146.07,81.0]
[1740763501983,80.7,146.17,146.08,18.79181043]
[1740763502184,86.9181,146.19,146.1,18.79181043]
[1740763502397,6.2181,146.19,146.12,18.79181043]
[1740763503099,80.763,146.21,146.12,18.79181043]
[1740763503708,80.763,146.21,146.18,312.0]
[1740763504693,80.7,146.2,146.11,7.1]
[1740763505002,1.7961324,146.19,146.11,7.1]
[1740763505303,80.7,146.2,146.11,7.1]
[1740763505606,80.7,146.2,146.11,88.1]
[1740763506608,80.7,146.2,146.11,7.1]
[1740763507010,0.063,146.21,146.12,22.79181043]
[1740763507246,0.063,146.21,146.14,18.79181043]
[1740763507711,0.063,146.21,146.2,312.0]
[1740763508888,0.063,146.21,146.11,81.0]
[1740763509104,80.7,146.2,146.14,7.1]
[1740763509306,6.1977,146.18,146.14,7.1]
[1740763509492,80.7,146.17,146.14,7.1]
[1740763509700,80.7,146.16,146.1,7.1]
[1740763510009,80.7,146.16,146.14,312.0]
[1740763510797,99.49181043,146.15,146.14,312.0]
[1740763511011,18.64964886,146.13,146.03,0.03]
[1740763511211,80.7,146.12,146.04,7.1]
[1740763511510,82.49698161,146.12,146.04,7.1]
[1740763511718,18.79181043,146.1,146.03,0.03]
[1740763511921,80.7,146.09,146.03,0.03]
[1740763512224,1.9397121,146.08,146.03,0.03]
[1740763512405,7.49711747,146.08,146.03,0.03]
[1740763513724,7.3549559,146.08,146.03,0.03]
[1740763513915,82.2888,146.09,146.06,312.0]
[1740763514116,80.7,146.08,146.06,312.0]
[1740763515429,99.49181043,146.07,146.03,0.03]
[1740763515628,101.28955901,146.07,146.03,0.03]
[1740763516729,80.7,146.06,146.03,0.03]
[1740763518407,5.74473364,146.09,146.05,312.0]
[1740763518612,80.7,146.1,146.05,312.0]
[1740763518820,80.7,146.1,146.04,7.1]
[1740763519739,82.49709312,146.1,146.04,7.1]
[1740763519912,80.7,146.1,146.04,7.1]
[1740763520631,101.28924319,146.09,146.03,0.03]
[1740763521833,101.28924319,146.09,146.06,312.0]
[1740763522035,99.49181043,146.09,146.06,312.0]
[1740763522614,80.7,146.09,146.03,0.03]
[1740763522809,82.3251,146.14,146.05,18.64964886]
[1740763523111,0.063,146.14,146.07,18.79181043]
[1740763523831,0.063,146.14,146.1,20.79181043]
[1740763524040,0.063,146.14,146.1,101.79181043]
[1740763524218,0.063,146.14,146.11,0.14216157]
[1740763524540,0.063,146.14,146.12,7.14]
[1740763524915,0.063,146.14,146.13,20.79181043]
[1740763525114,0.063,146.14,146.13,81.0]
[1740763525439,0.063,146.14,146.12,8.7934]
[1740763525610,0.063,146.14,146.13,312.0]
[1740763529643,0.063,146.14,146.13,411.79181043]
[1740763529829,0.063,146.14,146.13,413.39821043]
[1740763530547,0.063,146.14,146.13,415.39821043]
[1740763530749,0.063,146.14,146.13,422.24141043]
[1740763531342,0.063,146.14,146.13,413.39821043]
[1740763534249,0.063,146.14,146.13,312.0]
[1740763535246,0.14216157,146.13,146.06,0.03]
[1740763535449,20.58899685,146.13,146.06,0.03]
[1740763535682,18.79181043,146.11,146.06,0.03]
[1740763535967,1.79762579,146.1,146.06,0.03]
[1740763536544,18.79181043,146.09,146.06,0.03]
[1740763536756,18.79181043,146.07,146.06,0.03]
[1740763536967,24.41366352,146.07,146.06,0.03]
[1740763537160,18.79181043,146.07,146.06,0.03]
[1740763537740,1.93987997,146.07,146.06,0.03]
[1740763537950,1.7977184,146.07,146.06,0.03]
[1740763538268,5.64485549,146.08,146.06,312.03]
[1740763538567,18.79181043,146.08,146.06,312.03]
[1740763539367,0.14216157,146.08,146.06,312.03]
[1740763539943,0.14216157,146.09,146.06,312.03]
[1740763541041,5.69651815,146.09,146.06,0.03]
[1740763541238,1.93960915,146.1,146.06,0.03]
[1740763541239,1.79758871,146.08,146.06,0.03]
[1740763541648,1.79753452,146.1,146.06,0.03]
[1740763541966,80.7,146.09,146.06,0.03]
[1740763542876,82.49744637,146.09,146.06,0.03]
[1740763543361,80.7,146.09,146.06,0.03]
[1740763543951,80.7,146.09,146.08,312.0]
[1740763545244,99.49181043,146.09,146.08,312.0]
[1740763545444,80.7,146.09,146.08,312.0]
[1740763546452,80.7,146.12,146.08,312.0]
[1740763546671,86.36015373,146.12,146.08,312.0]
[1740763546980,99.49181043,146.11,146.06,0.03]
[1740763547282,1.79749229,146.1,146.06,0.03]
[1740763547770,99.49181043,146.11,146.06,0.03]
[1740763547974,5.7967767,146.12,146.06,7.13]
[1740763548143,80.7,146.13,146.06,7.13]
[1740763548350,0.063,146.14,146.06,7.13]
[1740763548351,80.763,146.14,146.06,7.13]
[1740763548578,80.763,146.14,146.06,90.13]
[1740763548778,0.063,146.14,146.07,18.79181043]
[1740763549083,0.063,146.14,146.07,22.79181043]
[1740763549581,0.063,146.14,146.09,18.79181043]
[1740763549799,0.063,146.14,146.13,312.0]
[1740763551688,0.063,146.14,146.13,411.79181043]
[1740763551867,0.063,146.14,146.13,423.81051043]
[1740763552268,0.063,146.14,146.13,419.81051043]
[1740763552893,0.063,146.14,146.13,421.81051043]
[1740763553074,0.063,146.14,146.13,419.81051043]
[1740763553272,0.063,146.14,146.13,312.0]
[1740763559313,0.063,146.14,146.13,580.42121043]
[1740763560011,0.063,146.14,146.13,537.0694]
[1740763560611,0.063,146.14,146.13,557.86121043]
[1740763560913,0.063,146.14,146.13,537.21156157]
[1740763561109,0.063,146.14,146.13,557.86121043]
[1740763561410,0.063,146.14,146.13,537.0694]
[1740763561621,0.063,146.14,146.13,531.0]
[1740763561789,0.063,146.14,146.13,549.79181043]
[1740763562292,0.063,146.14,146.13,531.0]
[1740763562615,0.063,146.14,146.13,393.0]
[1740763562783,0.063,146.14,146.09,81.0]
[1740763563707,0.063,146.14,146.13,312.0]
[1740763564316,0.063,146.14,146.08,0.03]
[1740763564317,80.7,146.13,146.08,0.03]
[1740763564897,0.063,146.14,146.08,0.03]
[1740763565897,0.063,146.14,146.08,81.03]
[1740763566097,0.063,146.14,146.08,219.03]
[1740763567222,0.063,146.14,146.13,312.0]
[1740763567907,0.063,146.14,146.08,81.03]
[1740763568307,0.063,146.14,146.08,219.03]
[1740763569930,0.063,146.14,146.08,0.03]
[1740763570094,6.2881,146.11,146.08,0.03]
[1740763570431,18.79181043,146.1,146.08,0.03]
[1740763571117,8.08538216,146.11,146.08,0.03]
[1740763571418,6.2881,146.11,146.08,0.03]
[1740763571627,0.14216157,146.09,146.03,0.03]
[1740763571836,18.79181043,146.07,146.03,0.03]
[1740763571998,99.49181043,146.07,146.03,0.03]
[1740763572197,80.7,146.07,146.03,0.03]
[1740763573020,6.2881,146.11,146.03,0.03]
[1740763573400,6.2881,146.11,146.04,7.08]
[1740763574027,0.063,146.14,146.05,18.79181043]
[1740763574230,0.063,146.14,146.05,239.79181043]
[1740763574529,0.063,146.14,146.13,312.0]
[1740763577103,0.063,146.14,146.13,549.79181043]
[1740763578623,0.063,146.14,146.13,568.44871043]
[1740763578827,0.063,146.14,146.13,561.60551043]
[1740763579039,0.063,146.14,146.13,532.6602]
[1740763579206,0.063,146.14,146.13,538.08]
[1740763579408,0.063,146.14,146.13,556.87181043]
[1740763579608,0.063,146.14,146.13,538.08]
[1740763580234,0.063,146.14,146.13,319.08]
[1740763581618,0.063,146.14,146.13,319.11]
[1740763581932,0.063,146.14,146.13,312.03]
[1740763582131,0.063,146.14,146.13,0.03]
[1740763582354,6.4271,146.14,146.13,0.03]
[1740763582518,25.21891043,146.14,146.13,0.03]
[1740763583526,6.4271,146.14,146.13,0.03]
[1740763583835,25.21891043,146.14,146.13,0.03]
[1740763585442,4.14216157,146.13,146.05,7.08]
[1740763585733,0.14216157,146.1,146.03,0.03]
[1740763586116,0.14216157,146.08,146.03,312.03]
[1740763586538,18.64964886,146.07,146.03,312.03]
[1740763587114,0.14216157,146.08,146.03,312.03]
[1740763587311,80.7,146.06,146.03,312.03]
[1740763587517,6.3871,146.06,146.03,0.03]
[1740763588330,80.7,146.06,146.03,0.03]
[1740763588634,80.7,146.08,146.03,0.03]
[1740763590525,80.7,146.08,146.06,312.0]
[1740763591050,80.7,146.07,146.06,312.0]
[1740763591218,99.49181043,146.07,146.03,0.03]
[1740763591547,82.49797669,146.06,146.03,0.03]
[1740763591728,80.7,146.06,146.03,0.03]
[1740763592232,80.7,146.06,146.03,312.03]
[1740763592445,6.0936,146.1,146.03,312.03]
[1740763592627,6.0936,146.1,146.03,81.03]
[1740763593143,80.7,146.11,146.03,81.03]
[1740763593342,6.1476,146.14,146.04,0.14216157]
[1740763593529,6.1476,146.14,146.06,18.79181043]
[1740763593717,0.063,146.14,146.06,18.79181043]
[1740763593917,0.063,146.14,146.06,241.79181043]
[1740763594230,0.063,146.14,146.08,18.79181043]
[1740763594432,0.063,146.14,146.1,18.79181043]
[1740763595437,0.063,146.14,146.1,248.63621043]
[1740763595636,0.063,146.14,146.13,312.0]
[1740763595835,0.063,146.14,146.13,393.0]
[1740763596822,0.063,146.14,146.13,312.0]
[1740763597830,0.063,146.14,146.08,7.18]
[1740763598845,0.063,146.14,146.12,312.0]
[1740763599219,0.063,146.14,146.09,18.79181043]
[1740763599420,0.063,146.14,146.09,237.79181043]
[1740763600542,0.063,146.14,146.09,219.0]
[1740763601044,0.063,146.14,146.09,81.0]
[1740763602346,0.063,146.14,146.13,312.0]
[1740763605247,0.063,146.14,146.07,88.16]
[1740763605446,80.763,146.14,146.07,7.16]
[1740763607452,0.063,146.14,146.08,18.64964886]
[1740763607630,0.063,146.14,146.11,0.14216157]
[1740763607945,0.063,146.14,146.12,18.64964886]
[1740763608133,0.063,146.14,146.13,319.12]
[1740763609053,0.063,146.14,146.13,337.91181043]
[1740763609542,0.063,146.14,146.13,565.33481043]
[1740763609749,0.063,146.14,146.13,569.33481043]
[1740763610947,0.063,146.2,146.16,0.14216157]
[1740763611152,0.063,146.2,146.16,81.0]
[1740763614137,0.063,146.2,146.19,312.0]
[1740763614652,80.763,146.2,146.19,312.0]
[1740763614953,6.0624,146.19,146.13,0.03]
[1740763615143,0.14216157,146.17,146.13,0.03]
[1740763615334,99.34964886,146.16,146.13,0.03]
[1740763615538,80.7,146.15,146.13,0.03]
[1740763615738,80.7,146.14,146.13,0.03]
[1740763616233,0.14216157,146.15,146.13,0.03]
[1740763616434,18.79181043,146.14,146.13,0.03]
[1740763618253,1.79674968,146.15,146.13,0.03]
[1740763618456,0.14216157,146.16,146.13,0.03]
[1740763618758,18.79181043,146.16,146.13,0.03]
[1740763618958,20.58840643,146.16,146.13,0.03]
[1740763620761,22.58840643,146.16,146.13,0.03]
[1740763621359,20.58840643,146.16,146.13,0.03]
[1740763621740,7.08,146.17,146.13,0.03]
[1740763621941,3.79661504,146.18,146.13,0.03]
[1740763622155,18.64964886,146.17,146.13,0.03]
[1740763622447,80.7,146.16,146.13,0.03]
[1740763623347,6.0624,146.19,146.13,0.03]
[1740763623541,80.763,146.2,146.13,0.03]
[1740763624168,0.063,146.2,146.16,20.0]
[1740763624369,0.063,146.2,146.16,88.1]
[1740763624871,0.063,146.2,146.19,312.0]
[1740763629055,18.71264886,146.2,146.13,0.03]
[1740763629366,25.45001043,146.18,146.13,0.03]
[1740763629964,1.79649119,146.17,146.13,0.03]
[1740763630164,80.7,146.16,146.13,0.03]
[1740763631249,1.79663033,146.15,146.13,0.03]
[1740763631762,82.49667566,146.16,146.13,0.03]
[1740763631957,82.49667566,146.16,146.13,312.03]
[1740763632268,80.7,146.16,146.13,312.03]
[1740763632658,80.7,146.16,146.13,0.03]
[1740763632858,0.063,146.2,146.13,0.03]
[1740763632859,80.763,146.2,146.13,0.03]
[1740763633070,0.063,146.2,146.13,81.03]
[1740763633370,0.063,146.2,146.14,7.06]
[1740763634161,0.063,146.2,146.14,88.06]
[1740763634367,80.7,146.19,146.13,0.03]
[1740763634862,0.063,146.2,146.13,81.03]
[1740763635559,0.063,146.2,146.19,312.0]
[1740763638978,0.063,146.2,146.13,81.03]
[1740763639185,80.763,146.2,146.13,81.03]
[1740763639659,82.49619657,146.19,146.13,0.03]
[1740763640154,99.49181043,146.18,146.13,0.03]
[1740763640351,18.79181043,146.16,146.13,0.03]
[1740763640676,80.7,146.15,146.13,0.03]
[1740763641057,80.7,146.14,146.13,0.03]
[1740763642174,80.7,146.14,146.13,312.03]
[1740763642362,1.6633,146.19,146.13,312.03]
[1740763642363,80.7,146.19,146.13,312.03]
[1740763642564,80.7,146.19,146.13,0.03]
[1740763645484,80.7,146.19,146.16,312.0]
[1740763645979,0.063,146.2,146.14,7.0]
[1740763649065,80.7,146.19,146.18,312.0]
[1740763650385,80.7,146.19,146.14,7.0]
[1740763650694,80.7,146.19,146.14,13.8424]
[1740763651365,80.7,146.19,146.14,7.0]
[1740763652086,0.063,146.2,146.14,88.0]
[1740763652590,0.063,146.2,146.14,94.8426]
[1740763652788,0.063,146.2,146.14,96.8426]
[1740763652991,0.063,146.2,146.18,20.0]
[1740763653387,0.063,146.2,146.19,312.0]
[1740763656093,80.763,146.2,146.19,312.0]
[1740763656289,0.063,146.2,146.19,312.0]
[1740763657277,0.063,146.2,146.13,82.6812]
[1740763657471,80.763,146.2,146.13,89.6412]
[1740763657793,80.763,146.2,146.13,87.99]
[1740763660398,80.763,146.2,146.17,312.0]
[1740763660872,80.7,146.19,146.17,312.0]
[1740763661073,0.063,146.2,146.13,0.03]
[1740763661074,18.79181043,146.17,146.13,0.03]
[1740763661287,80.7,146.16,146.13,0.03]
[1740763663483,6.4325,146.18,146.13,0.03]
[1740763664101,18.79181043,146.17,146.13,312.03]
[1740763664285,80.7,146.17,146.13,312.03]
[1740763664487,80.7,146.17,146.13,0.03]
[1740763665305,80.7,146.17,146.13,7.01]
[1740763666593,80.7,146.17,146.13,0.03]
[1740763667592,1.79639736,146.16,146.14,312.0]
[1740763667902,80.7,146.17,146.13,0.03]
[1740763667903,88.63566157,146.15,146.13,0.03]
[1740763668112,90.4325723,146.15,146.13,0.03]
[1740763668491,99.49181043,146.14,146.13,0.03]
[1740763668703,18.79181043,146.14,146.13,0.03]
[1740763669594,7.7935,146.15,146.13,0.03]
[1740763672002,0.14216157,146.11,146.03,0.03]
[1740763672213,80.7,146.1,146.03,0.03]
[1740763673502,82.49720977,146.13,146.04,6.98]
[1740763673903,0.14216157,146.11,146.03,0.03]
[1740763674102,0.14216157,146.07,146.03,0.03]
[1740763674304,80.7,146.06,146.03,0.03]
[1740763674910,80.7,146.06,146.03,312.03]
[1740763677611,87.1805,146.08,146.03,0.03]
[1740763678415,80.7,146.08,146.03,0.03]
[1740763680106,0.14216157,146.06,146.03,0.03]
[1740763680616,0.14216157,146.06,146.03,312.03]
[1740763681311,80.7,146.07,146.03,312.03]
[1740763681691,80.7,146.06,146.03,312.03]
[1740763682817,5.62346924,146.09,146.03,0.03]
[1740763683002,80.7,146.1,146.03,0.03]
[1740763685819,80.7,146.1,146.09,312.0]
[1740763686619,0.14216157,146.09,146.03,0.03]
[1740763686821,82.63975726,146.09,146.03,0.03]
[1740763688115,80.7,146.08,146.03,0.03]
[1740763689022,80.84216157,146.07,146.03,0.03]
[1740763689215,80.7,146.06,146.03,0.03]
[1740763689622,80.7,146.06,146.04,312.0]
[1740763690003,1.79759569,146.09,146.04,312.0]
[1740763690004,80.7,146.05,146.04,312.0]
[1740763693123,18.64964886,146.1,146.03,0.03]
[1740763693124,80.7,146.08,146.03,0.03]
[1740763693626,86.9397,146.11,146.03,0.03]
[1740763694200,86.9397,146.11,146.03,1.5762]
[1740763694498,86.9397,146.11,146.03,20.22584886]
[1740763695022,86.9397,146.11,146.03,1.5762]
[1740763696104,0.14216157,146.1,146.09,312.0]
[1740763696307,80.7,146.1,146.09,312.0]
[1740763698232,0.063,146.13,146.09,312.0]
[1740763698233,80.7,146.12,146.09,312.0]
[1740763698436,0.063,146.13,146.07,13.8259]
[1740763698726,0.063,146.13,146.08,18.64964886]
[1740763698927,0.063,146.13,146.08,99.64964886]
[1740763699114,0.063,146.13,146.09,6.845]
[1740763699310,0.063,146.13,146.1,18.79181043]
[1740763699521,0.063,146.13,146.11,1.5364]
[1740763699920,0.063,146.13,146.12,18.64964886]
[1740763700120,0.063,146.13,146.12,99.64964886]
[1740763700517,0.063,146.13,146.12,99.79181043]
[1740763700720,0.063,146.13,146.12,99.64964886]
[1740763701429,0.063,146.13,146.12,411.64964886]
[1740763703334,0.063,146.13,146.12,556.63541043]
[1740763703514,0.063,146.13,146.12,560.63541043]
[1740763704244,0.063,146.13,146.12,558.63541043]
[1740763705121,0.063,146.13,146.12,556.49324886]
[1740763705412,0.063,146.13,146.12,549.64964886]
[1740763706029,0.063,146.13,146.12,312.0]
[1740763706217,0.063,146.17,146.15,2.0]
[1740763706528,0.063,146.2,146.19,30.59971043]
[1740763706734,0.063,146.23,146.22,42.64964886]
[1740763706928,0.063,146.23,146.22,261.64964886]
[1740763707113,0.063,146.23,146.22,259.64964886]
[1740763707309,0.063,146.23,146.22,264.48864886]
[1740763708429,0.063,146.23,146.22,266.48864886]
[1740763708632,0.063,146.23,146.22,259.64964886]
[1740763708829,0.063,146.28,146.24,18.64964886]
[1740763709022,0.063,146.28,146.25,6.98]
[1740763709426,0.063,146.28,146.27,312.0]
[1740763710335,0.063,146.28,146.22,6.98]
[1740763710536,6.2459,146.28,146.22,6.98]
[1740763711117,0.063,146.28,146.22,106.62964886]
[1740763711437,0.063,146.28,146.23,18.64964886]
[1740763712236,0.063,146.28,146.22,87.98]
[1740763713033,0.063,146.28,146.23,18.64964886]
[1740763713219,0.063,146.28,146.27,312.0]
[1740763715437,0.063,146.28,146.22,6.98]
[1740763715732,80.7,146.27,146.19,6.96]
[1740763716038,0.063,146.28,146.22,0.14216157]
[1740763716335,0.063,146.28,146.22,219.14216157]
[1740763716740,0.063,146.28,146.22,221.14216157]